bitfinex-derivatives/quotes_SOLF0:USTF0_20241206
["timestamp","ask_amount","ask_price","bid_price","bid_amount"]
[1733459773944,2.32,241.46,241.38,2.0704]
[1733459774147,2.32,241.46,241.32,8.8846641]
[1733459774446,2.32,241.49,241.4,2.0702]
[1733459774846,2.32,241.49,241.36,2.32]
[1733459775042,2.32,241.49,241.37,2.6077]
[1733459775249,2.0694,241.5,241.41,2.0702]
[1733459775552,11.2046641,241.51,241.41,2.0702]
[1733459776454,11.2046641,241.51,241.37,2.6077]
[1733459776645,11.2046641,241.51,241.42,2.0701]
[1733459777247,11.2046641,241.51,241.41,2.0701]
[1733459779249,11.2046641,241.51,241.37,2.6077]
[1733459779956,8.8846641,241.47,241.37,2.6077]
[1733459780449,8.8846641,241.47,241.33,2.32]
[1733459780955,2.07,241.43,241.33,2.32]
[1733459781151,2.32,241.44,241.33,2.32]
[1733459781454,8.8846641,241.43,241.33,2.32]
[1733459781653,10.9547641,241.43,241.33,2.32]
[1733459781860,8.8846641,241.43,241.33,2.32]
[1733459782758,2.0701,241.42,241.33,2.32]
[1733459783355,8.8846641,241.43,241.33,4.3909]
[1733459784651,2.0701,241.42,241.31,2.071]
[1733459785061,2.0701,241.42,241.29,4.9342]
[1733459785258,2.0701,241.42,241.32,2.0709]
[1733459785559,2.0702,241.41,241.32,2.0709]
[1733459786353,2.0702,241.41,241.29,4.9342]
[1733459786354,2.0704,241.39,241.29,2.6142]
[1733459786558,2.32,241.38,241.29,2.6142]
[1733459787757,4.3904,241.38,241.29,2.6142]
[1733459788160,2.32,241.38,241.29,2.6142]
[1733459789457,2.32,241.38,241.3,2.0711]
[1733459790563,2.32,241.38,241.24,3.5718]
[1733459790754,2.32,241.38,241.25,3.69982633]
[1733459791067,2.32,241.38,241.26,1.03632633]
[1733459791266,2.32,241.38,241.32,2.071]
[1733459791460,8.8846641,241.41,241.32,2.071]
[1733459791962,2.0703,241.4,241.3,2.0711]
[1733459792665,2.0704,241.38,241.25,2.6635]
[1733459792865,2.0704,241.38,241.28,2.0712]
[1733459793060,2.0704,241.38,241.25,2.6635]
[1733459793358,2.0705,241.37,241.29,2.0712]
[1733459794961,2.0705,241.37,241.3,2.0711]
[1733459796761,2.0707,241.35,241.28,2.0712]
[1733459796959,5.69917959,241.35,241.25,2.6635]
[1733459797766,2.0709,241.33,241.25,2.6635]
[1733459798668,2.0709,241.33,241.26,2.0715]
[1733459799167,2.0709,241.33,241.25,2.6635]
[1733459799557,5.69917959,241.35,241.25,2.6635]
[1733459799763,2.0711,241.31,241.25,2.6635]
[1733459801165,5.69917959,241.32,241.25,2.6635]
[1733459801368,2.071,241.33,241.25,2.6635]
[1733459801567,5.69917959,241.32,241.25,2.6635]
[1733459804367,5.69917959,241.32,241.25,4.7351]
[1733459805777,2.071,241.33,241.25,4.7351]
[1733459805971,7.77017959,241.33,241.25,4.7351]
[1733459807575,5.69917959,241.33,241.25,4.7351]
[1733459809474,5.69917959,241.33,241.11,0.17165329]
[1733459809678,2.32,241.36,241.16,5.69917959]
[1733459809679,5.69917959,241.27,241.16,5.69917959]
[1733459809975,5.69917959,241.24,241.16,5.69917959]
[1733459810169,5.69917959,241.24,241.16,7.77147959]
[1733459811577,5.69917959,241.24,241.16,2.0723]
[1733459813681,5.69917959,241.24,241.13,5.69917959]
[1733459813682,7.77077959,241.24,241.14,2.0724]
[1733459814273,2.0717,241.23,241.14,2.0724]
[1733459814473,5.69917959,241.24,241.14,2.0724]
[1733459814779,2.0722,241.18,241.12,2.5194]
[1733459815775,0.5366,241.35,241.12,8.21857959]
[1733459816080,2.32,241.34,241.15,5.69917959]
[1733459816287,2.0716,241.25,241.14,4.3924]
[1733459816577,2.0716,241.25,241.14,8.01917959]
[1733459817381,5.69917959,241.26,241.14,8.01917959]
[1733459817382,2.0717,241.24,241.14,8.01917959]
[1733459818088,5.69917959,241.23,241.14,2.32]
[1733459818282,7.77087959,241.23,241.14,2.32]
[1733459818580,7.77087959,241.23,241.13,5.69917959]
[1733459819287,7.77087959,241.23,241.14,2.0725]
[1733459820086,2.0718,241.22,241.12,4.592]
[1733459820383,5.69917959,241.2,241.12,4.592]
[1733459820588,7.77117959,241.2,241.12,4.592]
[1733459820883,7.77117959,241.2,241.12,2.5194]
[1733459821478,2.0721,241.19,241.12,2.5194]
[1733459821681,5.69917959,241.18,241.12,2.5194]
[1733459823982,2.32,241.21,241.12,2.5194]
[1733459824183,2.32,241.24,241.12,2.5194]
[1733459824389,5.69917959,241.21,241.12,2.5194]
[1733459825391,5.69917959,241.21,241.14,2.0724]
[1733459825686,2.0717,241.24,241.13,5.69917959]
[1733459825891,5.69917959,241.23,241.14,2.32]
[1733459826093,7.77097959,241.23,241.14,2.32]
[1733459826291,2.0718,241.23,241.14,2.32]
[1733459826485,5.69917959,241.22,241.15,2.0724]
[1733459828087,5.69917959,241.19,241.13,2.0726]
[1733459828286,5.69917959,241.19,241.12,2.5194]
[1733459829786,7.77127959,241.19,241.12,2.5194]
[1733459830293,7.77127959,241.19,241.1,2.0728]
[1733459830483,10.09127959,241.19,241.1,2.0728]
[1733459831390,10.09127959,241.19,241.08,1.2756]
[1733459831585,2.32,241.19,241.1,5.69917959]
[1733459833584,5.69917959,241.2,241.14,2.0725]
[1733459833982,5.69917959,241.2,241.1,5.69917959]
[1733459834186,5.69917959,241.2,241.15,2.0724]
[1733459834392,0.5366,241.35,241.15,2.0724]
[1733459834588,2.32,241.34,241.12,2.32]
[1733459834794,5.69917959,241.22,241.12,2.32]
[1733459834991,2.32,241.25,241.12,2.32]
[1733459835188,5.69917959,241.2,241.14,2.0725]
[1733459835494,5.69917959,241.2,241.12,2.32]
[1733459835697,5.69917959,241.23,241.13,5.69917959]
[1733459835898,5.69917959,241.23,241.14,2.532]
[1733459836105,5.69917959,241.23,241.16,2.0723]
[1733459836398,5.69917959,241.23,241.14,2.532]
[1733459836588,5.69917959,241.23,241.16,2.0723]
[1733459836790,5.69917959,241.23,241.14,2.532]
[1733459837198,5.69917959,241.23,241.18,2.0721]
[1733459839297,5.69917959,241.2,241.14,2.532]
[1733459839495,5.69917959,241.15,241.08,1.2756]
[1733459839702,5.69917959,241.12,241.08,1.2756]
[1733459842197,5.69917959,241.12,241.08,3.3486]
[1733459842599,5.69917959,241.15,241.08,3.3486]
[1733459845400,5.69917959,241.15,241.08,1.2756]
[1733459845703,2.0719,241.22,241.09,5.69917959]
[1733459845904,5.69917959,241.21,241.1,2.32]
[1733459846098,5.69917959,241.21,241.15,2.0724]
[1733459849105,5.69917959,241.21,241.14,2.0725]
[1733459849307,5.69917959,241.21,241.12,2.32]
[1733459849707,5.69917959,241.21,241.14,2.0725]
[1733459850604,7.77107959,241.21,241.12,2.32]
[1733459851799,7.77107959,241.21,241.13,2.0726]
[1733459851999,5.69917959,241.18,241.08,7.23739959]
[1733459852202,5.69917959,241.18,241.09,2.32]
[1733459853599,7.77137959,241.18,241.11,2.0727]
[1733459853804,5.69917959,241.18,241.08,1.53822]
[1733459854002,5.69917959,241.18,241.08,7.23739959]
[1733459854706,5.69917959,241.18,241.09,2.0729]
[1733459856615,7.77137959,241.18,241.09,2.0729]
[1733459857014,5.69917959,241.18,241.09,2.0729]
[1733459858715,2.0722,241.17,241.09,2.0729]
[1733459860713,2.0724,241.16,241.08,1.53822]
[1733459861020,5.69917959,241.18,241.08,1.53822]
[1733459861218,5.69917959,241.12,241.08,0.26262]
[1733459861417,7.77187959,241.12,241.08,0.26262]
[1733459861813,12.42,241.33,241.08,0.26262]
[1733459862016,5.69917959,241.15,241.08,0.26262]
[1733459862517,5.69917959,241.12,241.08,0.26262]
[1733459864219,5.69917959,241.12,241.04,5.69917959]
[1733459864525,5.69917959,241.12,241.05,4.7595]
[1733459865212,5.69917959,241.12,241.05,2.0733]
[1733459869827,2.32,241.17,241.1,2.0728]
[1733459870121,2.32,241.17,241.05,5.69917959]
[1733459870527,5.69917959,241.15,241.05,5.69917959]
[1733459870829,5.69917959,241.15,241.05,8.01917959]
[1733459871222,5.69917959,241.15,241.08,2.073]
[1733459874530,4.1418,241.34,241.05,8.01917959]
[1733459874729,2.0717,241.24,241.14,2.0725]
[1733459874934,5.69917959,241.21,241.14,2.0725]
[1733459875532,5.69917959,241.21,241.12,2.0726]
[1733459875533,5.69917959,241.18,241.12,2.0726]
[1733459875734,5.69917959,241.18,241.11,2.32]
[1733459877337,5.69917959,241.18,241.1,2.0728]
[1733459877338,7.77137959,241.18,241.1,2.0728]
[1733459878438,5.69917959,241.15,241.1,2.0728]
[1733459878940,5.69917959,241.12,241.01,0.17215743]
[1733459879241,5.69917959,241.09,241.02,2.69704391]
[1733459879441,5.69917959,241.09,241.03,2.69704391]
[1733459879642,5.69917959,241.09,241.04,1.03732458]
[1733459879845,5.69917959,241.09,240.99,8.22927959]
[1733459880039,5.69917959,241.09,241.03,2.0734]
[1733459880240,5.69917959,241.09,241.04,1.03736173]
[1733459880540,5.69917959,241.09,241.05,1.03736173]
[1733459880741,7.77207959,241.09,240.99,6.9238]
[1733459880940,5.69917959,241.09,241.0,4.77198928]
[1733459881141,5.69917959,241.09,241.01,2.69721133]
[1733459881434,5.69917959,241.09,240.99,6.9238]
[1733459881641,2.073,241.08,241.0,3.11113157]
[1733459881942,2.073,241.08,240.98,6.15225959]
[1733459881943,5.69917959,241.02,240.98,0.45308]
[1733459882142,5.69917959,240.99,240.98,0.45308]
[1733459882447,8.01917959,240.99,240.98,0.45308]
[1733459883347,5.69917959,240.99,240.84,1.3054]
[1733459883542,115.0,241.17,240.84,1.3054]
[1733459883543,5.69917959,240.94,240.84,1.3054]
[1733459884045,2.32,240.97,240.84,1.3054]
[1733459884243,5.69917959,240.95,240.84,1.3054]
[1733459885539,5.69917959,240.95,240.88,2.0747]
[1733459885743,5.69917959,240.95,240.84,1.3054]
[1733459886046,5.69917959,240.92,240.84,1.3054]
[1733459887542,2.32,240.97,240.84,1.3054]
[1733459887747,2.32,241.0,240.85,5.69917959]
[1733459888048,115.0,241.25,240.88,5.69917959]
[1733459888242,5.69917959,240.99,240.89,2.32]
[1733459888443,629.7854526,241.26,240.89,3.6016]
[1733459888740,5.69917959,241.0,240.91,5.69917959]
[1733459889047,5.69917959,241.0,240.95,2.0741]
[1733459889944,8.9328329,241.03,240.95,2.0741]
[1733459890742,11.2528329,241.03,240.94,2.0742]
[1733459891448,8.9328329,241.03,240.94,2.0742]
[1733459891947,8.9328329,241.03,240.89,3.6016]
[1733459892247,8.9328329,241.03,240.95,2.0741]
[1733459892947,2.0728,241.12,241.01,2.0736]
[1733459893250,8.9328329,241.11,240.96,2.546]
[1733459894352,8.9328329,241.03,240.83,4.52831603]
[1733459894648,2.32,241.02,240.83,8.9328329]
[1733459895041,2.0738,240.99,240.83,8.9328329]
[1733459895441,2.32,241.02,240.83,8.9328329]
[1733459895650,8.9328329,240.99,240.83,8.9328329]
[1733459896247,2.0739,240.98,240.89,2.0746]
[1733459896755,2.0739,240.98,240.83,8.9328329]
[1733459896756,2.0739,240.98,240.87,2.0748]
[1733459896952,8.9328329,240.99,240.87,2.0748]
[1733459897248,2.074,240.97,240.87,2.0748]
[1733459898148,8.9328329,240.99,240.88,2.0747]
[1733459898351,11.0066329,240.99,240.83,8.9328329]
[1733459898658,2.32,241.02,240.83,8.9328329]
[1733459898955,8.9328329,240.99,240.76,2.32]
[1733459899158,8.9328329,240.99,240.82,1.328]
[1733459899650,43.16,241.1,240.83,13.35173307]
[1733459899852,8.9328329,241.07,240.87,8.9328329]
[1733459900053,8.9328329,241.07,240.88,2.5278]
[1733459900249,8.9328329,241.07,240.89,2.32]
[1733459902047,2.0733,241.05,240.96,2.074]
[1733459903249,2.0735,241.03,240.94,2.0742]
[1733459903450,4.3935,241.03,240.94,2.0742]
[1733459903658,4.3935,241.03,240.89,2.32]
[1733459903954,4.3935,241.03,240.95,2.0741]
[1733459905753,2.0736,241.01,240.92,2.0743]
[1733459906855,2.0736,241.01,240.93,2.0743]
[1733459908056,2.32,241.03,240.89,2.32]
[1733459908761,2.32,241.03,240.96,2.074]
[1733459912264,2.32,241.03,240.97,2.074]
[1733459913669,2.32,241.03,240.98,2.0739]
[1733459915361,2.32,241.05,240.98,2.0739]
[1733459918168,4.3933,241.05,240.96,2.074]
[1733459918671,4.3933,241.05,240.91,1.282]
[1733459918865,4.3933,241.05,240.97,2.0739]
[1733459920169,4.1434,241.24,240.96,2.32]
[1733459920369,8.9328329,241.13,240.97,2.32]
[1733459920670,2.32,241.12,240.98,2.32]
[1733459921268,2.32,241.12,241.02,2.0735]
[1733459921269,2.0728,241.1,241.02,2.0735]
[1733459921473,2.32,241.12,240.98,2.32]
[1733459922770,2.0729,241.09,241.01,2.0736]
[1733459924268,2.0729,241.09,240.97,2.32]
[1733459924269,2.073,241.08,240.99,2.0737]
[1733459924475,8.9328329,241.09,240.99,2.0737]
[1733459925175,8.9328329,241.09,240.99,2.0738]
[1733459926272,2.0733,241.05,240.97,4.394]
[1733459926472,8.9328329,241.09,240.97,2.32]
[1733459927277,11.0057329,241.09,241.0,2.0737]
[1733459927971,7.78723161,241.06,240.98,2.0739]
[1733459928175,5.71403161,241.03,240.94,5.71403161]
[1733459929569,5.71403161,241.03,240.95,2.0741]
[1733459929768,5.71403161,241.03,240.91,3.602]
[1733459929972,5.71403161,241.03,240.94,5.71403161]
[1733459930168,5.71403161,241.03,240.91,1.282]
[1733459930367,5.71403161,241.03,240.92,5.71403161]
[1733459930572,7.78763161,241.01,240.92,5.71403161]
[1733459930775,7.78763161,241.01,240.93,2.0743]
[1733459931176,5.71403161,241.01,240.93,2.0743]
[1733459931873,5.71403161,241.01,240.91,1.282]
[1733459931874,5.71403161,240.98,240.91,1.282]
[1733459932675,2.074,240.97,240.91,1.282]
[1733459934474,5.71403161,240.98,240.91,1.282]
[1733459934679,2.0741,240.96,240.91,1.282]
[1733459936880,5.71403161,240.98,240.88,1.2237]
[1733459937080,2.32,240.97,240.88,6.93773161]
[1733459937682,2.0742,240.94,240.88,6.93773161]
[1733459937980,2.0742,240.94,240.88,5.71403161]
[1733459938176,5.71403161,240.95,240.79,1.3341]
[1733459938479,5.71403161,240.92,240.81,5.71403161]
[1733459938683,2.32,240.91,240.81,5.71403161]
[1733459938981,2.32,240.91,240.81,5.99552161]
[1733459939182,43.16,241.09,240.84,5.71403161]
[1733459939379,5.71403161,240.99,240.87,5.71403161]
[1733459939577,2.32,240.98,240.9,5.71403161]
[1733459939880,4.3939,240.98,240.9,5.71403161]
[1733459940080,2.32,240.98,240.87,5.71403161]
[1733459940977,2.0742,240.95,240.87,5.71403161]
[1733459941173,5.71403161,240.96,240.84,2.32]
[1733459941379,5.71403161,240.96,240.85,5.71403161]
[1733459941779,2.0743,240.94,240.85,7.78903161]
[1733459941978,2.0743,240.94,240.85,2.075]
[1733459942183,2.32,240.98,240.85,2.075]
[1733459943482,2.0744,240.92,240.84,2.32]
[1733459943676,8.93575988,240.96,240.84,2.32]
[1733459943982,8.93575988,240.96,240.81,0.28149]
[1733459944785,2.0744,240.92,240.81,0.28149]
[1733459944986,2.32,240.91,240.81,0.28149]
[1733459945387,2.0747,240.89,240.81,0.28149]
[1733459946187,2.0748,240.88,240.81,0.28149]
[1733459947489,2.32,240.91,240.81,0.28149]
[1733459947889,2.0745,240.91,240.84,2.075]
[1733459948985,8.93575988,240.98,240.81,0.28149]
[1733459949188,8.93575988,240.98,240.87,2.0748]
[1733459949189,2.0742,240.95,240.87,2.0748]
[1733459949386,2.32,240.97,240.84,2.32]
[1733459949989,2.32,240.97,240.81,0.28149]
[1733459950387,8.93575988,240.95,240.81,0.28149]
[1733459950690,2.0746,240.9,240.82,2.0752]
[1733459950883,2.0746,240.9,240.81,0.28149]
[1733459951590,2.0746,240.9,240.83,2.0752]
[1733459952287,2.32,240.91,240.81,0.28149]
[1733459952595,2.0749,240.87,240.81,0.28149]
[1733459952786,2.32,240.91,240.81,0.28149]
[1733459953788,2.0749,240.87,240.81,0.28149]
[1733459955488,2.32,240.92,240.81,0.28149]
[1733459955691,11.25575988,240.96,240.81,0.28149]
[1733459956692,11.25575988,240.96,240.85,2.075]
[1733459957093,11.25575988,240.96,240.81,0.28149]
[1733459957294,11.25575988,240.96,240.79,1.3341]
[1733459957689,2.0746,240.9,240.82,2.0752]
[1733459958192,2.0746,240.9,240.79,1.3341]
[1733459958393,2.0746,240.9,240.8,2.32]
[1733459958892,2.0747,240.89,240.83,2.0752]
[1733459959289,2.0748,240.87,240.81,2.0753]
[1733459959490,8.93575988,240.92,240.81,2.0753]
[1733459960585,8.93575988,240.92,240.8,2.32]
[1733459960586,8.93575988,240.92,240.79,1.3341]
[1733459961491,8.93575988,240.88,240.78,1.312]
[1733459961701,2.32,240.87,240.78,1.312]
[1733459962102,5.7249452,240.83,240.78,1.312]
[1733459962296,5.7249452,240.83,240.72,1.3483]
[1733459962497,5.7249452,240.83,240.72,2.649]
[1733459962795,2.0753,240.82,240.73,5.7249452]
[1733459963598,2.0753,240.82,240.74,2.0759]
[1733459964099,2.32,240.87,240.72,2.649]
[1733459964399,2.32,240.9,240.73,10.20693885]
[1733459964595,8.94533885,240.92,240.73,10.20693885]
[1733459964596,2.32,240.91,240.73,10.20693885]
[1733459965193,2.0747,240.89,240.81,2.0753]
[1733459968998,2.0748,240.87,240.79,2.0755]
[1733459969803,2.0749,240.86,240.77,4.3956]
[1733459970705,2.0749,240.86,240.78,2.0756]
[1733459971898,2.0749,240.86,240.77,2.32]
[1733459972200,2.0749,240.86,240.75,2.32]
[1733459972802,2.0749,240.86,240.77,2.0757]
[1733459972995,2.075,240.85,240.77,2.0757]
[1733459974002,8.94533885,240.89,240.77,2.0757]
[1733459974204,2.0751,240.84,240.77,2.0757]
[1733459975201,11.26533885,240.9,240.77,2.0757]
[1733459975401,11.26533885,240.9,240.78,2.0756]
[1733459977006,2.0748,240.88,240.79,2.0755]
[1733459977213,2.0748,240.88,240.75,2.32]
[1733459978513,2.0748,240.88,240.8,2.0754]
[1733459981507,2.0748,240.88,240.74,8.94533885]
[1733459981508,17.55792971,241.05,240.82,8.94533885]
[1733459981709,8.94533885,241.0,240.83,6.2446]
[1733459982413,2.074,240.97,240.88,2.0747]
[1733459984114,8.94533885,240.96,240.83,6.2446]
[1733459984315,2.0745,240.91,240.83,6.2446]
[1733459985017,2.0745,240.91,240.83,8.3198]
[1733459986019,7.79555382,240.91,240.83,8.3198]
[1733459986421,7.79555382,240.91,240.83,6.2446]
[1733459988617,2.0745,240.91,240.83,6.2446]
[1733459988918,7.79555382,240.91,240.83,6.2446]
[1733459989122,2.0746,240.9,240.83,6.2446]
[1733459989623,5.72105382,240.91,240.83,8.3197]
[1733459990018,7.79555382,240.91,240.83,6.2446]
[1733459990319,7.79555382,240.91,240.83,11.96565382]
[1733459990727,2.0745,240.91,240.83,11.96565382]
[1733459991623,2.0745,240.91,240.84,2.0751]
[1733459992217,2.32,240.93,240.83,6.2446]
[1733459992218,5.72105382,240.9,240.83,6.2446]
[1733459992422,5.72105382,240.9,240.83,4.9022]
[1733459992820,5.72105382,240.9,240.83,2.5822]
[1733459993427,7.79565382,240.9,240.83,4.6573]
[1733459995328,2.0746,240.9,240.83,4.6573]
[1733459996020,2.0746,240.9,240.84,2.0751]
[1733460000030,7.79555382,240.91,240.84,2.0751]
[1733460001924,2.0745,240.91,240.84,2.0751]
[1733460002122,7.79555382,240.91,240.84,2.0751]
[1733460003327,7.79555382,240.91,240.83,8.30325382]
[1733460004025,7.79555382,240.91,240.84,2.0751]
[1733460005426,5.72105382,240.91,240.85,2.075]
[1733460006530,5.72105382,240.91,240.84,2.075]
[1733460006727,7.79555382,240.91,240.84,2.075]
[1733460006928,2.3,240.94,240.85,5.72105382]
[1733460007128,2.3,240.98,240.88,2.0747]
[1733460007333,5.72105382,240.96,240.88,2.0747]
[1733460008635,2.0741,240.96,240.88,2.0747]
[1733460009139,2.3,241.07,240.94,2.0742]
[1733460009334,5.72105382,241.02,240.93,5.72105382]
[1733460009730,2.3,241.07,240.95,2.0741]
[1733460009927,5.72105382,241.02,240.95,2.0741]
[1733460011232,2.0734,241.04,240.95,2.0741]
[1733460011432,5.72105382,241.03,240.95,2.0741]
[1733460011833,5.72105382,241.03,240.93,5.72105382]
[1733460011834,7.79455382,241.03,240.93,7.79525382]
[1733460012032,5.72105382,240.99,240.92,2.4949]
[1733460012537,5.72105382,240.97,240.92,2.4949]
[1733460015738,5.72105382,240.94,240.84,1.3502]
[1733460015935,5.72105382,240.92,240.84,1.3502]
[1733460017334,2.3,240.94,240.84,7.07125382]
[1733460017640,5.72105382,240.92,240.84,1.3502]
[1733460017941,5.72105382,240.92,240.83,2.0751]
[1733460018540,5.72105382,240.9,240.81,2.3]
[1733460018741,5.72105382,240.88,240.81,2.3]
[1733460018940,2.3,240.94,240.79,8.25705382]
[1733460019138,5.72105382,240.9,240.79,8.25705382]
[1733460019844,2.0747,240.89,240.81,2.0753]
[1733460020135,8.02105382,240.94,240.84,5.72105382]
[1733460020741,2.0744,240.92,240.84,7.79615382]
[1733460021144,2.0743,240.93,240.84,7.79615382]
[1733460021338,7.79535382,240.93,240.84,7.79615382]
[1733460022039,5.72105382,240.95,240.88,2.0747]
[1733460022238,5.72105382,240.99,240.9,5.72105382]
[1733460022437,8.02105382,241.01,240.92,5.72105382]
[1733460022840,2.3,241.01,240.92,5.72105382]
[1733460023040,8.02105382,241.01,240.92,5.72105382]
[1733460023442,8.02105382,241.01,240.93,2.0743]
[1733460024344,2.3,241.01,240.93,2.0743]
[1733460024941,2.3,241.01,240.92,5.72105382]
[1733460025249,7.79455382,241.03,240.94,7.79525382]
[1733460026747,297.5871445,241.22,240.97,2.0739]
[1733460026945,5.72105382,241.05,240.97,2.0739]
[1733460028745,340.7671445,241.22,240.98,2.0739]
[1733460028746,2.0731,241.08,240.98,2.0739]
[1733460028947,5.72105382,241.08,240.98,5.72105382]
[1733460030544,7.79405382,241.08,240.98,7.79485382]
[1733460031151,4.3729,241.1,241.0,5.72105382]
[1733460031349,7.79395382,241.1,241.0,5.72105382]
[1733460032150,5.72105382,241.1,241.0,5.72105382]
[1733460032452,5.72105382,241.08,241.0,5.72105382]
[1733460032649,5.72105382,241.06,240.96,1.229]
[1733460032852,5.72105382,241.04,240.96,1.229]
[1733460033355,7.79435382,241.06,240.97,7.79505382]
[1733460033650,5.72105382,241.08,240.97,5.72105382]
[1733460034654,2.0731,241.07,240.98,2.0739]
[1733460034955,5.72105382,241.08,240.98,2.0739]
[1733460035755,2.0732,241.06,240.98,2.0739]
[1733460036552,2.0732,241.06,240.97,7.79495382]
[1733460037557,2.0732,241.06,240.97,5.72105382]
[1733460037757,2.0732,241.06,240.98,2.0739]
[1733460038257,2.0732,241.06,240.98,7.79495382]
[1733460039257,2.3,241.11,240.94,2.0742]
[1733460039258,2.0734,241.04,240.94,2.0742]
[1733460039458,2.0734,241.04,240.94,5.72105382]
[1733460040755,2.0734,241.04,240.96,2.074]
[1733460041156,10.09435382,241.05,240.96,2.074]
[1733460041357,2.3,241.08,240.99,2.0738]
[1733460041559,2.3,241.08,240.97,5.72105382]
[1733460041759,2.3,241.08,241.0,5.72105382]
[1733460042063,2.3,241.08,241.0,7.79465382]
[1733460042465,2.3,241.08,241.0,5.72105382]
[1733460042962,2.3,241.08,240.97,5.72105382]
[1733460043663,5.72105382,241.06,241.0,2.0737]
[1733460049067,5.72105382,241.06,240.93,2.3]
[1733460049374,2.0735,241.03,240.96,2.074]
[1733460050075,2.0736,241.02,240.96,2.074]
[1733460051273,2.0736,241.02,240.97,2.0739]
[1733460051672,5.72105382,241.05,240.94,2.3]
[1733460051870,2.0736,241.01,240.95,2.0741]
[1733460052278,5.72105382,241.02,240.93,5.72105382]
[1733460052775,8.02105382,241.02,240.92,1.2333]
[1733460053473,2.3,241.02,240.92,1.2333]
[1733460054172,2.3,241.02,240.95,2.0741]
[1733460056277,2.3,241.02,240.94,2.0742]
[1733460056773,5.72105382,241.01,240.94,2.0742]
[1733460057176,5.72105382,241.01,240.92,3.3076]
[1733460057177,2.0737,241.0,240.92,3.3076]
[1733460057376,5.72105382,241.01,240.92,1.2333]
[1733460057781,2.0738,240.99,240.92,1.2333]
[1733460058381,2.3,241.02,240.91,2.628]
[1733460058382,2.074,240.97,240.91,2.628]
[1733460059678,5.72105382,240.92,240.87,0.15292]
[1733460060281,2.0746,240.9,240.87,0.15292]
[1733460060982,5.72105382,240.89,240.87,0.15292]
[1733460061184,7.79575382,240.89,240.87,0.15292]
[1733460063286,2.0747,240.89,240.87,0.15292]
[1733460063482,7.79575382,240.89,240.87,0.15292]
[1733460066887,2.3,240.88,240.87,0.15292]
[1733460067481,5.72105382,240.89,240.87,0.15292]
[1733460068483,5.72105382,240.92,240.87,0.15292]
[1733460068684,8.02105382,240.92,240.87,0.15292]
[1733460069089,8.02105382,240.92,240.8,5.72105382]
[1733460069592,2.3,240.92,240.84,2.0751]
[1733460070187,7.79535382,240.93,240.84,3.2979]
[1733460071686,5.72105382,240.93,240.85,2.075]
[1733460071891,5.72105382,240.96,240.87,5.72105382]
[1733460072093,5.72105382,240.96,240.88,1.3443]
[1733460073701,5.72105382,240.96,240.88,3.419]
[1733460075091,5.72105382,240.96,240.88,1.3443]
[1733460075796,5.72105382,240.96,240.9,2.0746]
[1733460075991,5.72105382,240.96,240.88,1.3443]
[1733460076998,5.72105382,240.96,240.88,3.419]
[1733460077800,5.72105382,240.96,240.89,2.0746]
[1733460078294,2.074,240.97,240.89,2.0746]
[1733460078500,7.79505382,240.97,240.89,2.0746]
[1733460079305,5.72105382,240.97,240.89,2.0746]
[1733460079506,2.0741,240.96,240.89,2.0746]
[1733460081303,5.72105382,240.95,240.89,2.0746]
[1733460081498,5.72105382,240.93,240.88,1.3443]
[1733460081698,5.72105382,240.91,240.84,1.2228]
[1733460082208,2.0746,240.9,240.84,1.2228]
[1733460082703,7.79555382,240.91,240.84,1.2228]
[1733460083408,7.79555382,240.91,240.84,3.2979]
[1733460083709,5.72105382,240.91,240.84,3.2979]
[1733460083907,2.0744,240.92,240.85,5.72105382]
[1733460084108,8.02105382,240.96,240.88,2.0747]
[1733460085706,2.0741,240.95,240.85,5.72105382]
[1733460086310,2.3,240.96,240.84,1.2228]